bitfinex/quotes_BTCUSD_20251221
["timestamp","ask_amount","ask_price","bid_price","bid_amount"]
[1766296265492,0.00247,88235.0,88227.0,0.24894]
[1766296272483,0.00247,88235.0,88227.0,0.12458]
[1766296274752,0.00247,88235.0,88227.0,0.11458]
[1766296320931,0.00247,88235.0,88226.0,5.276e-05]
[1766296339724,0.001921,88235.0,88226.0,5.276e-05]
[1766296349325,0.03065133,88246.0,88232.0,0.01133375]
[1766296349488,0.00568,88248.0,88236.0,0.32834779]
[1766296349685,0.00568,88248.0,88237.0,0.24554]
[1766296349939,0.00236903,88248.0,88237.0,0.12304]
[1766296350142,0.00236903,88248.0,88236.0,0.32834779]
[1766296350346,0.00236903,88248.0,88237.0,0.24554]
[1766296350490,0.00236903,88248.0,88239.0,0.01133285]
[1766296351059,0.00568,88253.0,88248.0,0.00055]
[1766296351412,0.00568,88253.0,88245.0,0.24514128]
[1766296352761,0.00568,88253.0,88246.0,0.1225]
[1766296356031,0.00568,88253.0,88247.0,0.24278]
[1766296356238,0.00568,88253.0,88244.0,0.24278]
[1766296356639,0.03405304,88258.0,88248.0,0.12078]
[1766296356840,0.11672,88266.0,88256.0,0.01133067]
[1766296357057,0.00568,88265.0,88255.0,0.24278]
[1766296357886,0.00094854,88256.0,88255.0,0.24278]
[1766296359991,0.00499942,88265.0,88255.0,0.24278]
[1766296360391,0.00499942,88265.0,88255.0,0.242231]
[1766296360607,0.00499942,88265.0,88255.0,0.122]
[1766296360816,0.0113299,88262.0,88252.0,0.03404821]
[1766296361007,0.01133003,88261.0,88252.0,0.03349821]
[1766296361210,0.251929,88263.0,88252.0,0.03349821]
[1766296361211,0.0113299,88262.0,88252.0,0.03349821]
[1766296361511,0.251929,88263.0,88252.0,0.03349821]
[1766296361512,0.19527977,88263.0,88252.0,0.03349821]
[1766296361713,0.0113299,88262.0,88252.0,0.03349821]
[1766296361943,0.01133003,88261.0,88252.0,0.03349821]
[1766296362133,0.0113299,88262.0,88252.0,0.03349821]
[1766296362332,0.01133003,88261.0,88252.0,0.03349821]
[1766296363070,0.01133016,88260.0,88252.0,0.03349821]
[1766296363278,0.01133003,88261.0,88252.0,0.03349821]
[1766296363503,0.0113299,88262.0,88252.0,0.03349821]
[1766296363727,0.01133003,88261.0,88252.0,0.03349821]
[1766296363950,0.0113299,88262.0,88252.0,0.03349821]
[1766296365012,0.19527977,88263.0,88252.0,0.03349821]
[1766296365218,0.18395,88263.0,88252.0,0.03349821]
[1766296365613,0.19527977,88263.0,88252.0,0.03349821]
[1766296365818,0.01133003,88261.0,88252.0,0.03349821]
[1766296366229,0.0113299,88262.0,88252.0,0.03349821]
[1766296366874,0.01133016,88260.0,88252.0,0.03349821]
[1766296367009,0.01133003,88261.0,88252.0,0.03349821]
[1766296367218,0.01133016,88260.0,88252.0,0.03349821]
[1766296367737,0.06723,88258.0,88252.0,0.02576435]
[1766296367937,0.01133067,88256.0,88250.0,0.00568]
[1766296368141,0.0679846,88256.0,88242.0,0.122]
[1766296368349,0.11672,88251.0,88242.0,0.00568]
[1766296368570,0.11672,88249.0,88242.0,0.00568]
[1766296370666,0.03318,88250.0,88242.0,0.00568]
[1766296372051,0.1224,88253.0,88250.0,0.000549]
[1766296372451,0.1224,88253.0,88242.0,0.00568]
[1766296373356,0.0001,88252.0,88242.0,0.00568]
[1766296374525,0.0001,88252.0,88242.0,0.01701247]
[1766296375101,0.0001,88252.0,88242.0,0.00568]
[1766296375702,0.0001,88252.0,88242.0,0.01701247]
[1766296376080,0.0001,88252.0,88242.0,0.00568]
[1766296376587,0.0001,88252.0,88242.0,0.01701247]
[1766296376903,0.0001,88252.0,88242.0,0.00568]
[1766296377300,0.0001,88252.0,88242.0,0.01606407]
[1766296379163,0.0001,88252.0,88243.0,0.03045802]
[1766296379323,0.0001,88252.0,88243.0,0.04179036]
[1766296381282,0.0001,88252.0,88244.0,0.03045802]
[1766296384105,0.0001,88252.0,88245.0,0.03045802]
[1766296385327,0.0001,88252.0,88242.0,0.01606407]
[1766296385945,0.116536,88253.0,88242.0,0.0047316]
[1766296389291,0.0566556,88253.0,88242.0,0.0047316]
[1766296389530,0.00568,88254.0,88233.0,0.11755]
[1766296389531,0.11811,88243.0,88233.0,0.11755]
[1766296389738,0.11811,88243.0,88235.0,0.00568]
[1766296390782,0.00568,88246.0,88235.0,0.00568]
[1766296394492,0.00568,88246.0,88235.0,0.01701337]
[1766296394633,0.00568,88246.0,88236.0,0.01133324]
[1766296394834,0.00568,88246.0,88238.0,0.01133298]
[1766296395055,0.00568,88246.0,88239.0,0.2352]
[1766296395377,0.00568,88246.0,88239.0,0.11755]
[1766296395583,0.12379,88246.0,88235.0,0.00568]
[1766296397243,0.12379,88246.0,88235.0,0.12941]
[1766296397400,0.00568,88246.0,88235.0,0.25385]
[1766296397979,0.00568,88246.0,88235.0,0.26518337]
[1766296398183,0.00568,88246.0,88235.0,0.25385]
[1766296403447,0.0113317,88248.0,88235.0,0.25385]
[1766296403655,0.00568,88247.0,88235.0,0.25385]
[1766296410133,0.00568,88247.0,88235.0,0.24817]
[1766296410334,0.00568,88247.0,88236.0,0.00568]
[1766296410740,0.00568,88247.0,88237.0,0.2418]
[1766296411120,0.005131,88247.0,88240.0,0.12074]
[1766296411326,0.005131,88247.0,88242.0,0.12074]
[1766296411532,0.005131,88247.0,88242.0,0.13207247]
[1766296411886,0.005131,88247.0,88242.0,0.12074]
[1766296413022,0.0001,88251.0,88242.0,0.12074]
[1766296413236,0.0001,88251.0,88239.0,0.01133285]
[1766296413237,0.00578,88251.0,88245.0,0.2418]
[1766296416657,0.17013886,88264.0,88251.0,0.00055]
[1766296416861,0.0113299,88262.0,88251.0,0.23618]
[1766296417174,0.03405107,88261.0,88251.0,0.23563]
[1766296418333,0.03405107,88261.0,88252.0,0.23563]
[1766296418867,0.03405107,88261.0,88252.0,0.2346817]
[1766296419504,0.03405107,88261.0,88252.0,0.1154317]
[1766296419731,0.00568,88262.0,88253.0,0.13058105]
[1766296420054,0.00568,88262.0,88253.0,0.11925]
[1766296420055,0.00220153,88262.0,88253.0,0.11925]
[1766296423463,0.00220153,88262.0,88253.0,0.13058105]
[1766296423638,0.00220153,88262.0,88253.0,0.11925]
[1766296423983,0.00220153,88262.0,88253.0,0.13058105]
[1766296424180,0.00220153,88262.0,88253.0,0.11925]
[1766296425005,0.00220153,88262.0,88253.0,0.13058105]
[1766296425773,0.00220153,88262.0,88253.0,0.11925]
[1766296425955,0.00220153,88262.0,88253.0,0.13058105]
[1766296426308,0.00220153,88262.0,88253.0,0.11925]
[1766296433990,8.531e-05,88265.0,88253.0,0.11925]
[1766296434304,0.00568,88264.0,88253.0,0.23563]
[1766296436348,0.00568,88264.0,88254.0,0.11925]
[1766296439829,0.00568,88264.0,88254.0,0.118701]
[1766296440561,0.01133016,88260.0,88248.0,0.12206]
[1766296440763,0.11349,88255.0,88243.0,0.03404914]
[1766296441123,0.11349,88255.0,88240.0,0.01141482]
[1766296441124,0.01133105,88253.0,88240.0,0.01141482]
[1766296441269,0.11349,88252.0,88242.0,0.00568]
[1766296442489,0.01133105,88253.0,88242.0,0.24131]
[1766296442691,0.01133067,88256.0,88243.0,0.11638]
[1766296442895,0.13050054,88257.0,88244.0,0.23563]
[1766296443090,0.11917,88257.0,88244.0,0.23563]
[1766296443300,0.11917,88257.0,88244.0,0.11638]
[1766296443473,0.11917,88257.0,88245.0,0.11925]
[1766296445097,0.13050054,88257.0,88245.0,0.11925]
[1766296445496,0.11917,88257.0,88245.0,0.11925]
[1766296446738,0.11917,88257.0,88245.0,0.23626]
[1766296447531,0.11917,88257.0,88245.0,0.11925]
[1766296451361,0.13050054,88257.0,88245.0,0.11925]
[1766296451573,0.11917,88257.0,88245.0,0.11925]
[1766296451979,0.13050054,88257.0,88245.0,0.11925]
[1766296453045,0.01133067,88256.0,88245.0,0.11925]
[1766296453422,0.13050054,88257.0,88245.0,0.11925]
[1766296454632,0.01133067,88256.0,88245.0,0.11925]
[1766296454841,0.01133067,88256.0,88245.0,0.23626]
[1766296455053,0.11917,88257.0,88245.0,0.23626]
[1766296456565,0.13050054,88257.0,88245.0,0.23626]
[1766296457154,0.01133067,88256.0,88245.0,0.23626]
[1766296457355,0.13050054,88257.0,88245.0,0.23626]
[1766296458380,0.01133067,88256.0,88245.0,0.23626]
[1766296458829,0.13050054,88257.0,88245.0,0.23626]
[1766296459040,0.11917,88257.0,88245.0,0.23626]
[1766296459179,0.034052,88260.0,88246.0,0.08160721]
[1766296459374,0.00568,88259.0,88257.0,0.000549]
[1766296459575,0.00568,88258.0,88257.0,0.000549]
[1766296459813,0.00568,88258.0,88251.0,0.01359757]
[1766296459994,0.00568,88258.0,88249.0,0.23294]
[1766296460194,0.00568,88258.0,88249.0,0.11701]
[1766296460418,0.00568,88258.0,88250.0,0.11593]
[1766296461412,0.005131,88258.0,88250.0,0.11593]
[1766296467077,0.005131,88258.0,88250.0,0.23176573]
[1766296467918,0.03405138,88261.0,88250.0,0.23176573]
[1766296468096,0.00568,88259.0,88250.0,0.23176573]
[1766296474543,0.00568,88259.0,88250.0,0.22828726]
[1766296481941,0.00568,88259.0,88251.0,0.11339]
[1766296482151,0.00568,88259.0,88251.0,0.23559]
[1766296497527,0.00568,88259.0,88247.0,0.01701182]
[1766296497718,0.00568,88259.0,88252.0,0.23559]
[1766296500299,0.00568,88259.0,88253.0,0.24918727]
[1766296500479,0.00568,88259.0,88253.0,0.23559]
[1766296502388,0.00513,88259.0,88254.0,0.1222]
[1766296502596,0.01141482,88260.0,88254.0,0.23559]
[1766296503046,0.00568,88261.0,88254.0,0.23559]
[1766296503227,0.01709482,88261.0,88254.0,0.23559]
[1766296503429,0.00568,88264.0,88250.0,0.06798807]
[1766296503628,0.00568,88264.0,88254.0,0.24692093]
[1766296503831,0.0301934,88264.0,88254.0,0.24692093]
[1766296504356,0.0301934,88264.0,88254.0,0.11339]
[1766296504559,0.00568,88264.0,88254.0,0.11339]
[1766296504733,0.03404836,88263.0,88254.0,0.112841]
[1766296505268,0.15102836,88263.0,88249.0,0.1222]
[1766296505468,0.16235813,88263.0,88249.0,0.1222]
[1766296505850,0.15102836,88263.0,88249.0,0.1222]
[1766296506396,0.16235813,88263.0,88249.0,0.1222]
[1766296506730,0.16235813,88263.0,88250.0,0.12246]
[1766296507389,0.15102836,88263.0,88250.0,0.12246]
[1766296507591,0.16235813,88263.0,88250.0,0.12246]
[1766296507952,0.0113299,88262.0,88250.0,0.12246]
[1766296508160,0.01133003,88261.0,88250.0,0.12246]
[1766296508691,0.00055,88250.0,88247.0,0.00568]
[1766296508896,0.01188144,88250.0,88247.0,0.00568]
[1766296509049,0.00055,88250.0,88245.0,0.00568]
[1766296509398,0.11698,88252.0,88245.0,0.00568]
[1766296510142,0.03405281,88256.0,88245.0,0.00568]
[1766296510998,0.11698,88255.0,88245.0,0.00568]
[1766296516111,0.05106335,88257.0,88245.0,0.00568]
[1766296516305,0.05106335,88257.0,88245.0,0.1262]
[1766296516508,0.03973281,88257.0,88248.0,0.24298]
[1766296517727,0.05106335,88257.0,88248.0,0.24298]
[1766296517924,0.03973281,88257.0,88248.0,0.12246]
[1766296520780,0.00568,88257.0,88248.0,0.12246]
[1766296521478,0.01701054,88257.0,88248.0,0.12246]
[1766296521763,0.01133067,88256.0,88248.0,0.12246]
[1766296522122,0.01701054,88257.0,88248.0,0.12246]
[1766296522549,0.01133067,88256.0,88248.0,0.12246]
[1766296523069,0.01701054,88257.0,88248.0,0.12246]
[1766296524221,0.00568,88257.0,88248.0,0.12246]
[1766296525510,0.11608,88256.0,88242.0,0.01701054]
[1766296525749,0.11608,88256.0,88244.0,0.12411]
[1766296525974,0.15013404,88256.0,88244.0,0.24396]
[1766296526103,0.11608,88256.0,88244.0,0.24396]
[1766296526444,0.03405404,88255.0,88244.0,0.24396]
[1766296528594,0.04538484,88255.0,88244.0,0.24396]
[1766296528802,0.03405404,88255.0,88244.0,0.24396]
[1766296529001,0.12741067,88256.0,88244.0,0.24396]
[1766296529374,0.03405404,88255.0,88244.0,0.24396]
[1766296534537,0.03405404,88255.0,88244.0,0.11985]
[1766296534748,0.03405404,88255.0,88245.0,0.24396]
[1766296536818,0.03405404,88255.0,88246.0,0.12237]
[1766296537838,0.03405404,88255.0,88247.0,0.12362]
[1766296538091,0.005131,88255.0,88251.0,0.24599]
[1766296551011,0.005131,88255.0,88251.0,0.11724]
[1766296568294,1e-06,88255.0,88251.0,0.11724]
[1766296568589,1e-06,88255.0,88251.0,0.24149]
[1766296570026,1e-06,88255.0,88251.0,0.11724]
[1766296570263,1e-06,88255.0,88251.0,0.116691]
[1766296578405,1e-06,88255.0,88247.0,0.12425]
[1766296579819,1e-06,88255.0,88244.0,0.12447]
[1766296579820,0.01133131,88251.0,88244.0,0.12447]
[1766296580031,0.01133131,88251.0,88242.0,0.00568]
[1766296580659,0.01133131,88251.0,88242.0,0.13015]
[1766296580864,0.01133144,88250.0,88242.0,0.2544]
[1766296581702,0.01133131,88251.0,88242.0,0.2544]
[1766296583916,0.01133118,88252.0,88242.0,0.2544]
[1766296584312,0.0113318,88255.0,88242.0,0.2544]
[1766296584313,1e-06,88255.0,88242.0,0.2544]
[1766296584491,0.0113318,88255.0,88252.0,0.000549]
[1766296584881,0.0113318,88255.0,88246.0,0.12391]
[1766296587796,0.01133093,88254.0,88246.0,0.12391]
[1766296588351,0.0113318,88255.0,88246.0,0.12391]
[1766296588733,0.01133105,88253.0,88246.0,0.12391]
[1766296588951,0.01133093,88254.0,88246.0,0.12391]
[1766296589156,0.01133131,88251.0,88242.0,0.00568]
[1766296589330,0.01133118,88252.0,88242.0,0.00568]
[1766296589514,0.01133105,88253.0,88242.0,0.12959]
[1766296589715,1e-06,88255.0,88243.0,0.23696]
[1766296589961,0.0113318,88255.0,88244.0,0.23696]
[1766296590169,1e-06,88255.0,88244.0,0.23696]
[1766296590906,0.0113318,88255.0,88244.0,0.23696]
[1766296592595,0.0113318,88255.0,88244.0,0.11305]
[1766296592779,0.0113318,88255.0,88245.0,0.12391]
[1766296595262,1e-06,88255.0,88245.0,0.12391]
[1766296597726,1e-06,88255.0,88245.0,0.24022]
[1766296600191,1e-06,88255.0,88242.0,0.01701247]
[1766296600586,1e-06,88255.0,88244.0,0.23347]
[1766296600834,1e-06,88255.0,88243.0,0.23347]
[1766296601427,1e-06,88255.0,88242.0,0.00568]
[1766296601652,1e-06,88255.0,88243.0,0.23347]
[1766296601853,1e-06,88255.0,88242.0,0.00568]
[1766296602592,1e-06,88255.0,88243.0,0.23347]
[1766296602925,0.0113318,88255.0,88242.0,0.00568]
[1766296603138,1e-06,88255.0,88242.0,0.00568]
[1766296603881,1e-06,88255.0,88243.0,0.23347]
[1766296604084,1e-06,88255.0,88242.0,0.01701247]
[1766296604686,1e-06,88255.0,88243.0,0.11631]
[1766296605071,1e-06,88255.0,88243.0,0.23347]
[1766296605290,1e-06,88255.0,88242.0,0.01701247]
[1766296605476,1e-06,88255.0,88242.0,0.00568]
[1766296605685,1e-06,88255.0,88243.0,0.23347]
[1766296605885,1e-06,88255.0,88242.0,0.00568]
[1766296606730,1e-06,88255.0,88243.0,0.23347]
[1766296607051,1e-06,88255.0,88242.0,0.00568]
[1766296607250,1e-06,88255.0,88243.0,0.23347]
[1766296607858,1e-06,88255.0,88242.0,0.01701247]
[1766296608519,1e-06,88255.0,88242.0,0.00568]
[1766296608847,1e-06,88255.0,88243.0,0.23347]
[1766296609052,1e-06,88255.0,88242.0,0.00568]
[1766296609262,1e-06,88255.0,88243.0,0.23347]
[1766296609631,1e-06,88255.0,88242.0,0.00568]
[1766296609844,1e-06,88255.0,88243.0,0.23347]
[1766296610261,1e-06,88255.0,88242.0,0.00568]
[1766296610635,1e-06,88255.0,88243.0,0.23347]
[1766296610858,1e-06,88255.0,88242.0,0.00568]
[1766296611355,1e-06,88255.0,88243.0,0.23347]
[1766296611533,1e-06,88255.0,88244.0,0.11716]
[1766296613244,1e-06,88255.0,88245.0,0.11631]
[1766296613443,1e-06,88255.0,88247.0,0.11716]
[1766296621438,1e-06,88255.0,88247.0,0.23347]
[1766296622631,0.02266298,88255.0,88247.0,0.23347]
[1766296623066,1e-06,88255.0,88247.0,0.23347]
[1766296623469,0.02266298,88254.0,88247.0,0.23347]
[1766296630651,0.03399391,88254.0,88247.0,0.23347]
[1766296631061,0.01133118,88252.0,88247.0,0.11716]
[1766296631359,0.01133131,88251.0,88247.0,0.11716]
[1766296633962,0.04538316,88253.0,88247.0,0.11716]
[1766296635429,0.04538316,88253.0,88243.0,0.12468]
[1766296636074,0.01133118,88252.0,88243.0,0.24316]
[1766296636287,0.01133131,88251.0,88243.0,0.24316]
[1766296636486,0.01133118,88252.0,88243.0,0.24316]
[1766296637816,0.01133131,88251.0,88243.0,0.24316]
[1766296638314,0.01133118,88252.0,88243.0,0.24316]
[1766296639751,0.01133131,88251.0,88243.0,0.24316]
[1766296639958,0.01133118,88252.0,88243.0,0.24316]
[1766296640367,0.04538316,88253.0,88243.0,0.24316]
[1766296640576,0.03405211,88253.0,88243.0,0.24316]
[1766296641653,0.04538316,88253.0,88243.0,0.24316]
[1766296642074,0.03405211,88253.0,88243.0,0.24316]
[1766296643233,0.01133118,88252.0,88243.0,0.24316]
[1766296644093,0.04538316,88253.0,88243.0,0.24316]
[1766296644315,0.03405211,88253.0,88243.0,0.24316]
[1766296646445,0.04538316,88253.0,88243.0,0.24316]
[1766296646939,0.03405211,88253.0,88243.0,0.24316]
[1766296647333,0.04538316,88253.0,88243.0,0.24316]
[1766296647550,0.03405211,88253.0,88243.0,0.24316]
[1766296649480,0.04538316,88253.0,88243.0,0.24316]
[1766296649888,0.01133118,88252.0,88243.0,0.24316]
[1766296650210,0.04538316,88253.0,88243.0,0.24316]
[1766296651607,0.01133118,88252.0,88243.0,0.24316]
[1766296652214,0.04538316,88253.0,88243.0,0.24316]
[1766296652527,0.01133118,88252.0,88243.0,0.24316]
[1766296653316,0.04538316,88253.0,88243.0,0.24316]
[1766296655222,0.01133118,88252.0,88243.0,0.24316]
[1766296655645,0.04538316,88253.0,88243.0,0.24316]
[1766296660225,0.03405211,88253.0,88243.0,0.24316]
[1766296662472,0.03405211,88253.0,88244.0,0.2447]
[1766296662473,0.03350311,88253.0,88244.0,0.2447]
[1766296662655,1e-06,88255.0,88245.0,0.12238]
[1766296663101,0.03405311,88255.0,88245.0,0.12238]
[1766296663496,0.03405311,88255.0,88245.0,0.12048879]
[1766296665579,0.03405311,88255.0,88246.0,0.12232]
[1766296665796,0.03405311,88255.0,88246.0,0.2447]
[1766296676819,0.03405311,88255.0,88247.0,0.12238]
[1766296677038,0.03405311,88255.0,88247.0,0.2447]
[1766296680301,0.03405311,88255.0,88247.0,0.12238]
[1766296682824,0.04538391,88255.0,88247.0,0.12238]
[1766296683026,0.03405311,88255.0,88247.0,0.12238]
[1766296683272,1e-06,88255.0,88247.0,0.12238]
[1766296691277,0.05665553,88255.0,88247.0,0.12238]
[1766296691427,1e-06,88255.0,88247.0,0.121831]
[1766296694854,0.05665688,88251.0,88247.0,0.121831]
[1766296695035,0.01133144,88250.0,88243.0,0.12232]
[1766296695235,0.01133157,88249.0,88243.0,0.12232]
[1766296695420,0.05665593,88252.0,88243.0,0.12232]
[1766296695804,0.01133131,88251.0,88243.0,0.12232]
[1766296696226,0.01133144,88250.0,88243.0,0.12232]
[1766296696458,0.01133131,88251.0,88243.0,0.12232]
[1766296697606,0.01133144,88250.0,88243.0,0.12232]
[1766296699977,0.01133105,88253.0,88243.0,0.24708]
[1766296700151,0.01133105,88253.0,88250.0,0.000549]
[1766296700579,0.01133105,88253.0,88243.0,0.24708]
[1766296700919,0.01133105,88253.0,88244.0,0.12476]
[1766296701178,0.05665509,88255.0,88244.0,0.12476]
[1766296702287,0.01133093,88254.0,88244.0,0.2386]
[1766296702489,0.01133118,88252.0,88244.0,0.2386]
[1766296703253,0.01133105,88253.0,88244.0,0.2386]
[1766296703502,0.01133118,88252.0,88244.0,0.2386]
[1766296708366,0.01133131,88251.0,88244.0,0.2386]
[1766296708669,0.01133118,88252.0,88244.0,0.2386]
[1766296709398,0.01133131,88251.0,88244.0,0.2386]
[1766296709674,0.01133144,88250.0,88244.0,0.2386]
[1766296709876,0.01133118,88252.0,88244.0,0.2386]
[1766296710104,0.01133131,88251.0,88244.0,0.2386]
[1766296711101,0.01133118,88252.0,88244.0,0.2386]
[1766296711477,0.01133131,88251.0,88244.0,0.2386]
[1766296712059,0.01133118,88252.0,88244.0,0.2386]
[1766296712711,0.01133131,88251.0,88244.0,0.2386]
[1766296723264,0.01133105,88253.0,88244.0,0.2386]
[1766296723435,0.01133131,88254.0,88244.0,0.2386]
[1766296723614,0.01133105,88253.0,88244.0,0.2386]
[1766296723817,0.02266224,88254.0,88244.0,0.2386]
[1766296724167,0.01133105,88253.0,88244.0,0.2386]
[1766296724942,0.01133118,88252.0,88244.0,0.2386]
[1766296726374,0.01133105,88253.0,88244.0,0.2386]
[1766296727827,0.02266224,88254.0,88244.0,0.2386]
[1766296731302,0.01133105,88253.0,88244.0,0.2386]
[1766296734201,0.02266224,88254.0,88244.0,0.2386]
[1766296734202,0.01133131,88254.0,88244.0,0.2386]
[1766296734397,0.01133093,88254.0,88244.0,0.2386]
[1766296734598,0.01133093,88254.0,88242.0,0.00568]
[1766296735139,0.0113318,88255.0,88242.0,0.00568]
[1766296735741,0.0113318,88255.0,88243.0,0.24046]
[1766296735873,1e-06,88255.0,88242.0,0.00568]
[1766296736069,1e-06,88255.0,88243.0,0.24046]
[1766296736921,1e-06,88255.0,88242.0,0.00568]
[1766296737673,1e-06,88255.0,88243.0,0.24046]
[1766296737957,1e-06,88255.0,88242.0,0.00568]
[1766296738275,1e-06,88255.0,88244.0,0.1182]
[1766296738492,1e-06,88255.0,88245.0,0.24046]
[1766296740484,1e-06,88255.0,88242.0,0.00568]
[1766296740706,1e-06,88255.0,88243.0,0.24046]
[1766296741113,1e-06,88255.0,88242.0,0.00568]
[1766296741657,1e-06,88255.0,88243.0,0.24046]
[1766296741859,0.0113318,88255.0,88242.0,0.00568]
[1766296742357,1e-06,88255.0,88242.0,0.00568]
[1766296742659,1e-06,88255.0,88243.0,0.24046]
[1766296742863,1e-06,88255.0,88242.0,0.00568]
[1766296743218,1e-06,88255.0,88243.0,0.24046]
[1766296743425,0.0113318,88255.0,88242.0,0.00568]
[1766296743631,1e-06,88255.0,88242.0,0.00568]
[1766296744218,1e-06,88255.0,88243.0,0.24046]
[1766296744813,0.01133016,88260.0,88243.0,0.01133234]
[1766296745091,0.02450722,88258.0,88244.0,0.01359865]
[1766296745494,0.02450722,88258.0,88247.0,0.11563]
[1766296745829,0.02450722,88258.0,88249.0,0.22906]
[1766296749470,0.03583763,88258.0,88249.0,0.22906]
[1766296749639,0.02450722,88258.0,88249.0,0.22906]
[1766296750207,0.00568,88257.0,88249.0,0.22906]
[1766296750663,0.00568,88257.0,88250.0,0.01359773]
[1766296750664,0.005131,88257.0,88250.0,0.01359773]
[1766296751034,0.005131,88257.0,88249.0,0.22906]
[1766296751855,0.00568,88257.0,88248.0,0.11343]
[1766296752058,0.00568,88257.0,88251.0,0.22906]
[1766296768481,0.00568,88257.0,88251.0,0.11563]
[1766296776981,0.000549,88251.0,88247.0,0.00568]
[1766296777404,0.0113308,88255.0,88247.0,0.00568]
[1766296777821,0.01701054,88257.0,88247.0,0.00568]
[1766296778427,0.0113308,88255.0,88247.0,0.12327]
[1766296778629,0.01133067,88256.0,88247.0,0.12327]
[1766296778971,0.0113308,88255.0,88247.0,0.00568]
[1766296779385,0.01133093,88254.0,88247.0,0.00568]
[1766296779598,0.01133105,88253.0,88247.0,0.00568]
[1766296779803,0.01133131,88251.0,88247.0,0.00568]
[1766296780217,0.01133144,88250.0,88247.0,0.00568]
[1766296780443,0.01133131,88251.0,88247.0,0.00568]
[1766296780698,0.01133144,88250.0,88247.0,0.00568]
[1766296781058,0.05634057,88328.0,88247.0,0.00568]
[1766296781260,0.01133105,88253.0,88247.0,0.00568]
[1766296782243,0.02266173,88255.0,88247.0,0.00568]
[1766296783621,0.01133093,88254.0,88247.0,0.00568]
[1766296784878,0.01133105,88253.0,88247.0,0.00568]
[1766296785079,0.01133093,88254.0,88247.0,0.00568]
[1766296786211,0.01133105,88253.0,88247.0,0.00568]
[1766296786704,0.01133093,88254.0,88247.0,0.00568]
[1766296787516,0.01133105,88253.0,88247.0,0.00568]
[1766296788300,0.01133093,88254.0,88247.0,0.00568]
[1766296789021,0.01133105,88253.0,88247.0,0.00568]
[1766296789438,0.01133093,88255.0,88247.0,0.00568]
[1766296797332,0.00568,88257.0,88250.0,0.11759]
[1766296797539,0.01701054,88256.0,88247.0,0.00568]
[1766296797738,0.02834121,88256.0,88247.0,0.00568]
[1766296799815,0.0113308,88255.0,88247.0,0.00568]
[1766296800435,0.01701054,88256.0,88247.0,0.00568]
[1766296801054,0.00568,88257.0,88248.0,0.11759]
[1766296802345,0.02450882,88258.0,88226.0,0.22668955]
[1766296802346,0.00656,88240.0,88231.0,0.0001]
[1766296802560,0.00568,88241.0,88232.0,0.11769]
[1766296802773,0.00568,88242.0,88232.0,0.11769]
[1766296803198,0.03405884,88241.0,88232.0,0.11769]
[1766296803441,0.03405884,88241.0,88232.0,0.1312905]
[1766296803666,0.03405884,88241.0,88233.0,0.11759]
[1766296803667,0.03350884,88241.0,88233.0,0.11759]
[1766296803894,0.03350884,88241.0,88233.0,0.24076]
[1766296804101,0.00568,88242.0,88233.0,0.24076]
[1766296804325,0.01133195,88246.0,88236.0,0.11759]
[1766296804464,0.04538808,88246.0,88238.0,0.24076]
[1766296804706,0.03405613,88246.0,88238.0,0.23871048]
[1766296807394,0.03405613,88246.0,88239.0,0.01359942]
[1766296807609,0.03405613,88246.0,88239.0,0.24883942]
[1766296807757,0.03405613,88246.0,88239.0,0.23524]
[1766296821611,0.00568,88247.0,88234.0,0.00568]
[1766296821819,0.00568,88249.0,88235.0,0.01360004]
[1766296821966,0.00568,88249.0,88236.0,0.23524]
[1766296822203,0.00568,88249.0,88237.0,0.01359973]
[1766296822602,0.00568,88249.0,88238.0,0.23524]
[1766296822831,0.00568,88249.0,88242.0,0.12181]
[1766296823180,3.49e-06,88250.0,88246.0,0.23524]
[1766296823387,0.00568,88253.0,88246.0,0.234691]
[1766296823584,0.00568,88253.0,88246.0,0.231491]
[1766296829264,0.12331,88250.0,88232.0,0.0001]
[1766296829475,0.01133272,88240.0,88232.0,0.00578]
[1766296829676,0.06799492,88242.0,88234.0,0.01133067]
[1766296829885,0.01133272,88240.0,88232.0,0.00578]
[1766296830188,0.06799492,88242.0,88232.0,0.00578]
[1766296830392,0.01133247,88242.0,88232.0,0.00578]
[1766296830599,0.01133272,88240.0,88232.0,0.00578]
[1766296830804,0.01133285,88239.0,88232.0,0.00578]
[1766296831104,0.01133272,88240.0,88232.0,0.00578]
[1766296831426,0.01133272,88240.0,88221.0,0.05667552]
[1766296831427,0.05711878,88232.0,88221.0,0.12341]
[1766296831688,0.05711878,88232.0,88218.0,0.11285]
[1766296831689,0.38491139,88231.0,88229.0,2.85e-06]
[1766296831916,0.38491139,88231.0,88218.0,0.11285]
[1766296831917,0.01133465,88225.0,88220.0,0.00568]
[1766296832150,0.06800756,88226.0,88220.0,0.00568]
[1766296832290,0.01133465,88225.0,88220.0,0.00568]
[1766296832508,0.01133465,88225.0,88220.0,5.276e-05]
[1766296833117,0.01133452,88226.0,88220.0,5.276e-05]
[1766296833337,0.19554,88227.0,88220.0,5.276e-05]
[1766296834068,0.01701414,88229.0,88220.0,5.276e-05]
[1766296834069,0.00568,88229.0,88227.0,9.9e-05]
[1766296834476,0.00568,88229.0,88221.0,0.11285]
[1766296834671,0.00513,88229.0,88222.0,0.23626]
[1766296835242,0.00513,88229.0,88221.0,0.24275]
[1766296836500,0.00568,88234.0,88220.0,0.01138805]
[1766296836704,0.00568,88234.0,88220.0,0.32829614]
[1766296837040,0.00568,88234.0,88222.0,0.24275]
[1766296837217,0.00568,88234.0,88222.0,0.01133504]
[1766296838204,0.00568,88234.0,88225.0,0.11869]
[1766296841218,0.00568,88234.0,88225.0,0.13002465]
[1766296841658,0.00568,88234.0,88225.0,0.24275]
[1766296844268,0.00568,88234.0,88226.0,0.01360143]
[1766296844468,0.00568,88234.0,88225.0,0.24275]
[1766296845714,0.00568,88234.0,88222.0,0.00568]
[1766296845913,0.00568,88234.0,88222.0,0.06235509]
[1766296846090,0.00568,88234.0,88229.0,0.12406]
[1766296846296,0.00568,88234.0,88229.0,0.24275]